Cogmind - Beta 12 @@@ ROGUE MODE // 2023.10.29 @ 13:05:09 Player: gallo Result: Destroyed by G-50 Soldier with Heavy Laser Performance ------------- Evolutions (2) 1000 Regions Visited (5) 1000 Robots Destroyed (11) 55 Value Destroyed (416) 416 Prototype IDs (2) 40 Alien Tech Used (0) 0 Bonus (0) 0 TOTAL SCORE: 2511 Bonus ------- None Cogmind --------- Core Integrity 0/550 Matter 300/300 Energy 100/100 System Corruption 0% Temperature Cool (9) Movement Core (100) Ox1 Location -8/Materials Parts ------- > --- POWER (1) -------- (None) > --- PROPULSION (3) --- (None) > --- UTILITY (3) ------ Small Storage Unit Advanced Visual Processing Unit > --- WEAPON (4) ------- (None) > --- INVENTORY (8) ---- Light Treads Medium Storage Unit Peak State ------------ > --- POWER ------------ (None) > --- PROPULSION ------- Aluminum Leg Aluminum Leg > --- UTILITY ---------- Small Storage Unit Advanced Visual Processing Unit Medium Armor Plating > --- WEAPON ----------- Heavy EM Pulse Gun Grenade Launcher Mace > --- INVENTORY -------- Light Treads Medium Storage Unit Medium Laser Small Laser Small Laser Improved Datajack Mining Laser [Rating: 13] Favorites ----------- Power Light Ion Engine Engine Light Ion Engine Propulsion Light Treads Treads Light Treads Leg Aluminum Leg Flight Unit Cesium-ion Thruster Utility Small Storage Unit Device Terrain Scanner Storage Small Storage Unit Processor Advanced Visual Processing Unit Protection Medium Armor Plating Weapon Small Laser Energy Gun Small Laser Launcher Grenade Launcher Special Weapon Mining Laser Impact Weapon Mace Special Melee Weapon Improved Datajack Build | -11 -10 -10 -10 -9 -8 ------- Run | Jun Mat Min Exi Min Mat Slots Evolved 4 | . . . . . 4 Power . | . . . . . . Propulsion 1 | . . . . . 1 Utility 1 | . . . . . 1 Weapon 2 | . . . . . 2 Parts Attached 26 | 6 2 1 2 3 12 Power 1 | 1 . . . . . Engine 1 | 1 . . . . . Core . | . . . . . . Reactor . | . . . . . . Propulsion 7 | 2 . . 2 . 3 Treads 2 | . . . 2 . . Leg 4 | 2 . . . . 2 Wheel . | . . . . . . Hover . | . . . . . . Flight 1 | . . . . . 1 Utility 4 | 1 1 . . 1 1 Device 1 | . 1 . . . . Storage 1 | 1 . . . . . Processor 1 | . . . . . 1 Hackware . | . . . . . . Protection 1 | . . . . 1 . Artifact . | . . . . . . Weapon 14 | 2 1 1 . 2 8 Energy Gun 8 | 2 . 1 . 1 4 Energy Cannon . | . . . . . . Ballistic Gun . | . . . . . . Ballistic Cannon . | . . . . . . Launcher 1 | . . . . . 1 Special Weapon 2 | . 1 . . . 1 Impact Weapon 2 | . . . . 1 1 Slashing Weapon . | . . . . . . Piercing Weapon . | . . . . . . Special Melee Weapon 1 | . . . . . 1 Unidentified Prototypes . | . . . . . . Parts Lost 17 | . . 4 . . 13 Power 1 | . . 1 . . . Propulsion 5 | . . 2 . . 3 Utility 2 | . . 1 . . 1 Weapon 9 | . . . . . 9 Highest Loss Streak 12 | . . 4 . . 12 To Critical Strikes . | . . . . . . Average Slot Usage (%) 73 | . 91 58 71 77 50 Engine 3 | . 14 4 . . . Treads 15 | . . . 28 28 6 Leg 7 | . 28 8 . . 3 Device 3 | . 13 4 . . . Storage 12 | . 14 14 14 14 9 Protection 3 | . . . . 6 4 Energy Gun 19 | . 20 18 28 21 9 Impact Weapon 3 | . . . . 6 5 Naked Turns . | . . . . . . Heaviest Build 22 | 11 12 11 7 17 22 Greatest Support 40 | 20 20 20 40 40 40 Greatest Overweight (x) 2 | . . 2 . . 2 Average Overweight (x) . | . . 1 . . . Largest Inventory Capacity 8 | 8 8 8 8 8 8 Average Capacity 7 | 7 8 8 8 8 8 Most Carried 8 | 3 8 7 6 8 8 Average Carried 5 | 2 5 7 5 6 5 Final Capacity 8 | 8 8 8 8 8 8 Final Carried 8 | 3 7 7 5 8 2 Class Distribution -------------------- 91% | Mutant 4% | Derelict-Mutant 3% | Derelict-Tank Dominant Class ---------------- Mutant | -10/Materials Mutant | -10/Mines Mutant | -10/Exiles Mutant | -9/Mines Mutant | -8/Materials Resources | -11 -10 -10 -10 -9 -8 ----------- Run | Jun Mat Min Exi Min Mat Matter Collected 509 | 235 35 . . 71 168 Remotely . | . . . . . . Salvage Created 428 | . 83 . . 29 316 Parts 17 | . 4 . . 2 11 Haulers Intercepted . | . . . . . . Recyclers Shooed . | . . . . . . Parts Field Recycled . | . . . . . . Retrieved Matter . | . . . . . . Parts Self-Destructed . | . . . . . . Prevented . | . . . . . . Kills | -11 -10 -10 -10 -9 -8 ------- Run | Jun Mat Min Exi Min Mat Combat Hostiles Destroyed 9 | . 2 . . . 7 Guns 3 | . 2 . . . 1 Cannons 1 | . . . . . 1 AOE 3 | . . . . . 3 Classes Destroyed 3 | . 1 . . 1 1 Builder 2 | . . . . 1 1 Grunt 7 | . 2 . . . 5 Sentry 2 | . . . . . 2 Best Kill Streak 3 | . 1 . . 1 3 Combat Bots Only 3 | . 1 . . . 3 Max Kills in Single Turn 1 | . 1 . . 1 1 Gunslinging . | . . . . . . Exploded 1 | . . . . . 1 Melee . | . . . . . . Uniques/NPCs Destroyed . | . . . . . . Combat | -11 -10 -10 -10 -9 -8 -------- Run | Jun Mat Min Exi Min Mat Damage Taken 1988 | . 210 309 . . 1469 Core 674 | . 49 69 . . 556 Absorbed by Shields . | . . . . . . Core Remaining (%) 76 | 100 . . . 52 . Volleys Fired 50 | . 22 3 . 4 21 Largest 3 | . 2 1 . 2 3 Hottest 115 | . 100 100 . 80 115 Shots Fired 79 | . 30 3 . 6 40 Gun 64 | . 28 . . 6 30 Cannon . | . . . . . . Launcher 9 | . . . . . 9 Special 6 | . 2 3 . . 1 Kinetic . | . . . . . . Thermal 46 | . 30 3 . 4 9 Explosive 9 | . . . . . 9 Electromagnetic 24 | . . . . 2 22 Robot Hit Streak 7 | . 4 . . 1 7 Robot Miss Streak 5 | . 5 . . 3 2 Penetration Max . | . . . . . . Secondary Targets . | . . . . . . Shots Hit Robots 47 | . 13 . . 2 32 Core Hits 21 | . 7 . . 1 13 Critical Kills . | . . . . . . Critical Parts Destroyed 1 | . . . . . 1 Critical Strikes 2 | . 1 . . . 1 Burn 1 | . 1 . . . . Smash 1 | . . . . . 1 Melee Attacks 7 | . . . . . 7 Impact 6 | . . . . . 6 Slashing . | . . . . . . Piercing . | . . . . . . Sneak Attacks . | . . . . . . Combat Hostiles . | . . . . . . Follow-up Attacks . | . . . . . . Damage Inflicted 1018 | . 176 . . 30 812 Guns 487 | . 176 . . 28 283 Cannons . | . . . . . . Explosions 339 | . . . . . 339 Melee 165 | . . . . . 165 Ramming 3 | . . . . 2 1 Kinetic . | . . . . . . Thermal 283 | . 176 . . 12 95 Explosive 339 | . . . . . 339 Electromagnetic 228 | . . . . 16 212 Impact 165 | . . . . . 165 Slashing . | . . . . . . Piercing . | . . . . . . Highest Corruption 15 | . . 15 15 15 . Average Corruption 15 | . . 15 15 15 . Corruption Purged . | . . . . . . Corruption Blocked . | . . . . . . Effects 29 | . . 1 4 24 . Message Errors 11 | . . 1 1 9 . Matter Fused 6 | . . . 1 5 . Heat Flow Errors 4 | . . . 2 2 . Energy Discharges 4 | . . . . 4 . Data Loss (minor) 1 | . . . . 1 . Data Loss (major) 3 | . . . . 3 . Overload Shots . | . . . . . . Overflow Damage 48 | . . . . . 48 Projectiles . | . . . . . . Explosions 3 | . . . . . 3 Melee 45 | . . . . . 45 Knockbacks . | . . . . . . Impact . | . . . . . . Kinetic . | . . . . . . Secondary . | . . . . . . Self-Inflicted Damage 65 | . . . . . 65 Shots 2 | . . . . . 2 Rammed 3 | . . . . 2 1 Targets Rammed 3 | . . . . 2 1 Kicked . | . . . . . . Crushed . | . . . . . . Highest Temperature 265 | . 102 40 206 265 132 Average Temperature 53 | . 42 17 103 90 43 Received Heat Transfer 837 | . 126 . . . 711 Siege Activations . | . . . . . . Robots Corrupted . | . . . . . . Combat Hostiles . | . . . . . . Parts Fried 3 | . . . . . 3 Impact Corruptions 2 | . . . . . 2 Robots Melted . | . . . . . . Combat Hostiles . | . . . . . . Parts Melted 2 | . 2 . . . . Heat Transferred 759 | . 510 . . 25 224 Parts Sabotaged . | . . . . . . Parts Stolen . | . . . . . . Parts Stripped . | . . . . . . Power Chain Reactions . | . . . . . . Missiles Intercepted . | . . . . . . Alert | -11 -10 -10 -10 -9 -8 ------- Run | Jun Mat Min Exi Min Mat Peak Influence 188 | . 86 34 . 5 188 Initial 33 | . . 33 . . . Average 30 | . 37 9 . 2 134 Maximum Alert Level . | . . . . . . Low Security (%) 100 | 100 100 100 . 100 100 Level 1 . | . . . . . . Level 2 . | . . . . . . Level 3 . | . . . . . . Level 4 . | . . . . . . Level 5 . | . . . . . . High Security . | . . . . . . Max Security . | . . . . . . Squads Dispatched 1 | . . . . . 1 Investigation . | . . . . . . Extermination . | . . . . . . Reinforcement 1 | . . . . . 1 Assault . | . . . . . . Garrison . | . . . . . . Intercept . | . . . . . . Searches Triggered . | . . . . . . Construction Impeded . | . . . . . . Haulers Reinforced . | . . . . . . Active Scanning Responses . | . . . . . . Cargo Convoy Interrupts . | . . . . . . Stealth | -11 -10 -10 -10 -9 -8 --------- Run | Jun Mat Min Exi Min Mat Distress Signals 1 | . 1 . . . . Communications Jammed . | . . . . . . Distress Signals . | . . . . . . Times Spotted 16 | . 6 . . . 10 Peak Tracking Total 5 | . 3 . . . 5 Tactical Retreats 1 | . . . . . 1 Traps | -11 -10 -10 -10 -9 -8 ------- Run | Jun Mat Min Exi Min Mat Traps Triggered . | . . . . . . Indirectly . | . . . . . . Trap Hack Attempts . | . . . . . . Triggered . | . . . . . . Disarmed . | . . . . . . Reprogrammed . | . . . . . . Reused . | . . . . . . Traps Extracted . | . . . . . . Installed . | . . . . . . Triggered . | . . . . . . Machines | -11 -10 -10 -10 -9 -8 ---------- Run | Jun Mat Min Exi Min Mat Machines Disabled . | . . . . . . Max in Single Turn . | . . . . . . Machines Repaired . | . . . . . . Machines Sabotaged . | . . . . . . Overloaded Fab Kills . | . . . . . . Hacking | -11 -10 -10 -10 -9 -8 --------- Run | Jun Mat Min Exi Min Mat Machines Accessed 1 | . 1 . . . . Terminals 1 | . 1 . . . . Fabricators . | . . . . . . Repair Stations . | . . . . . . Recycling Units . | . . . . . . Scanalyzers . | . . . . . . Garrison Access . | . . . . . . Total Hacks 4 | . 4 . . . . Successful 3 | . 3 . . . . Failed 1 | . 1 . . . . Catastrophic . | . . . . . . Database Lockouts . | . . . . . . Manual . | . . . . . . Terminals 4 | . 4 . . . . Fabricators . | . . . . . . Repair Stations . | . . . . . . Recycling Units . | . . . . . . Scanalyzers . | . . . . . . Garrison Access . | . . . . . . Terminal Hacks 3 | . 3 . . . . Prototype ID Bank 1 | . 1 . . . . Alert Level 1 | . 1 . . . . Dispatch Records 1 | . 1 . . . . Fabricator Hacks . | . . . . . . Repair Station Hacks . | . . . . . . Recycling Unit Hacks . | . . . . . . Scanalyzer . | . . . . . . Garrison Access Hacks . | . . . . . . Unauthorized Hacks . | . . . . . . Terminals . | . . . . . . Fabricators . | . . . . . . Repair Stations . | . . . . . . Recycling Units . | . . . . . . Scanalyzers . | . . . . . . Garrison Access . | . . . . . . Data Cores Recovered . | . . . . . . Used . | . . . . . . Hacking Detections 1 | . 1 . . . . Full Trace Events . | . . . . . . Feedback Events . | . . . . . . Feedback Blocked . | . . . . . . Robot Schematics Acquired . | . . . . . . Robots Built . | . . . . . . Authchips . | . . . . . . Time . | . . . . . . Total Robot Build Rating . | . . . . . . Part Schematics Acquired . | . . . . . . Parts Built . | . . . . . . Authchips . | . . . . . . Time . | . . . . . . Total Part Build Rating . | . . . . . . Parts Repaired . | . . . . . . Time . | . . . . . . Parts Recycled . | . . . . . . Recycled Matter . | . . . . . . Retrieved Matter . | . . . . . . Retrieved Components . | . . . . . . Parts Scanalyzed . | . . . . . . Part Schematics Acquired . | . . . . . . Parts Damaged . | . . . . . . Bothacking | -11 -10 -10 -10 -9 -8 ------------ Run | Jun Mat Min Exi Min Mat Used RIF Installer . | . . . . . . Robots Hacked 1 | . . . . . 1 Non-combat . | . . . . . . Combat 1 | . . . . . 1 Robot Hacks Applied 1 | . . . . . 1 parse_system 1 | . . . . . 1 Relay Couplers Released . | . . . . . . Fabnet Peak Effective % . | . . . . . . Robots Rewired . | . . . . . . Allies Hacked . | . . . . . . Hacks Repelled . | . . . . . . Allies | -11 -10 -10 -10 -9 -8 -------- Run | Jun Mat Min Exi Min Mat Total Allies . | . . . . . . Largest Group . | . . . . . . Highest-Rated Group . | . . . . . . Highest-Rated Ally . | . . . . . . Total Orders . | . . . . . . Ally Attacks . | . . . . . . Total Damage . | . . . . . . Kills . | . . . . . . Allies Corrupted . | . . . . . . Allies Melted . | . . . . . . Intel | -11 -10 -10 -10 -9 -8 ------- Run | Jun Mat Min Exi Min Mat Robot Analysis Total . | . . . . . . Derelict Logs Recovered 1 | . . . . 1 . Drone Launches . | . . . . . . Drone Recoveries . | . . . . . . Exploration | -11 -10 -10 -10 -9 -8 ------------- Run | Jun Mat Min Exi Min Mat Turns Passed 1593 | 355 279 69 89 551 250 Spaces Moved 887 | 159 181 39 55 332 121 Core 94 | 8 . 32 . . 54 Treads 422 | . . . 55 332 35 Legs 368 | 151 181 7 . . 29 Wheels . | . . . . . . Hover . | . . . . . . Flight 3 | . . . . . 3 Fastest Speed 50 | 50 120 120 160 160 100 Average Speed 138 | 116 120 144 160 160 125 Slowest Speed 160 | 120 120 150 160 160 160 Overloaded Moves . | . . . . . . Propulsion Burnouts . | . . . . . . Robots Hopped . | . . . . . . Cave-ins Triggered 1 | . . 1 . . . Exploration Rate (%) 19 | 8 21 9 9 56 14 Regions Visited 5 Branch Regions 3 Pre-discovered Areas . | . . . . . . Known Exits Taken . | . . . . . . Unknown Exits Taken 5 | 1 1 1 1 1 . Scrap Searched 2 | . . . . 2 . Spaces Dug 5 | . 2 3 . . . Terrain Destroyed 75 | . 2 3 . . 70 Melee . | . . . . . . Projectile 5 | . 2 3 . . . AOE 70 | . . . . . 70 Terrain Rammed . | . . . . . . Walls Destroyed . | . . . . . . Machines Disabled . | . . . . . . Actions | -11 -10 -10 -10 -9 -8 --------- Run | Jun Mat Min Exi Min Mat Total 1146 | 326 209 42 56 343 170 Wait 159 | 159 . . . . . Move 882 | 158 180 38 54 331 121 Hop . | . . . . . . Pick Up 14 | 3 4 . . 3 4 Fast Attach 9 | 6 1 . . 1 1 Attach 14 | . 1 . 2 . 11 Detach 3 | . 1 . . . 2 Swap 3 | . . 1 . 2 . Drop 2 | . . . . . 2 Fire 50 | . 22 3 . 4 21 Melee 7 | . . . . . 7 Ram 1 | . . . . . 1 Kick . | . . . . . . Crush 2 | . . . . 2 . Escape Stasis . | . . . . . . Rewire . | . . . . . . Trap . | . . . . . . Miscellaneous . | . . . . . . Route ------- -11/Junkyard -10/Materials -10/Mines -10/Exiles -9/Mines -8/Materials (discovered 2 exits: Fac x2) History --------- Turn | Location | Event 5 | -11/Junkyard | Discovered new exit (range 15) 356 | -11/Junkyard | Entered Materials 357 | -10/Materials | Build established: Mutant 581 | -10/Materials | Discovered new exit (range 9) 635 | -10/Materials | Entered Mines 656 | -10/Mines | Crushed by falling debris 656 | -10/Mines | System corruption reached 10% 659 | -10/Mines | Met a Derelict bent on vengeance 687 | -10/Mines | Lost 4 parts (1p2n1u) 693 | -10/Mines | Deemed a non-threat by the Exiles lab entrance 695 | -10/Mines | Discovered new exit (range 5) 704 | -10/Mines | Entered Exiles 754 | -10/Exiles | Discovered new exit (range 15) 793 | -10/Exiles | Entered Mines 1312 | -9/Mines | Learned 8 Materials zone layouts 1325 | -9/Mines | Discovered new exit (range 8) 1344 | -9/Mines | Entered Materials 1344 | -8/Materials | Evolved 4 slots: Propulsion x1, Utility x1, Weapon x2 1345 | -8/Materials | Identified exit to Factory 1535 | -8/Materials | Core integrity fell below 50% 1552 | -8/Materials | Core integrity fell below 20% 1587 | -8/Materials | Lost 12 parts (3n1u8w) 1594 | -8/Materials | Destroyed by G-50 Soldier with Heavy Laser Last Messages --------------- 01525_ Acquired 49 matter. 01526_ Sml. Laser destroyed. 01531_ Destroyed Imp. Heat Sink. 01531_ G-47 Trooper system corrupted by crushing effect. 01532_ G-47 Trooper system terminally corrupted. 01532_ Aluminum Leg fried. 01532_ Particle Gun fried. 01532_ Mace destroyed. 01535_ Slammed into Y-45 Defender. 01536_ Jacked Y-45 Defender... >>parse_system Reading system data... 01538_ Imp. Datajack destroyed. 01538_ Y-45 Defender destroyed. 01542_ Mining Laser destroyed. 01544_ Critical hit (Burn: +37). 01553_ Med. Laser destroyed. 01556_ Sml. Laser destroyed. 01556_ Acquired 17 matter. 01576_ K-01 Serf collects debris. Map ----- +----------------------------------------------------+ | ?# ## #???????????????????? | | ## ## #???????????????????? | | ###/### +???????????????????? | | #???????????????????? | | #???????????????????? | | #????????##########?? | | ####### ########## #?? | | ####### ## = # #?? | | """ # ## # #?? | | """ + ## # #?? | | """ # ## """ # #?? | | # ## %""" # #?? | | # + """ # #?? | | # #% # #?? | | #######+## ######+## #?? | | # #### ##+###+###?? | | " #???? | | # #???? | | !# ### #####gg#???? | | # #?######???# #???? | | # #??????????# #???? | | ######## #??????????# #???? | | ##??????## ##?????????# #???? | | ??????### ########### #???? | | #### ## # #???? | | ## """ # @#???? | | ####+#### ## """ # #???? | | ? ####### """ # #???? | | """"? #?????# + #???? | | """"" #?????# """ # #???? | | """"" #?????# """ # #???? | | #?????# """ ####???? | | #?????# #??????? | | #?????#+########??????? | | #?????# #?????????????? | | #########?????# #?????????????? | | ??????????????# ######### #???? | | ??????##??????# #???? | | ?????? ######## #???? | | ?????? #???? | | ????? #???? | | ##???? ##########???? | | ?????? ###########????????????? | | ??????##??????????????????????? | | ??????????????????????????????? | | ??????????????????????????????? | | | | | | | | | +----------------------------------------------------+ Best States ------------- Heat Dissipation 31 Energy Generation 10 Energy Capacity 125 Matter Stores 300 Matter Capacity 300 Sight Range 20 Terrain Scan Range 14 Terrain Scan Density 10 Armor Coverage 225 Evasion (%) 55 Recoil Reduction 2 Item Schematics ----------------- None Robot Schematics ------------------ None Fabricated ------------ Nothing Alien Tech Used ----------------- None Achievements -------------- Let's See Who's Tougher Unlikely Earthworm Challenges ------------ None Game ------ Seed GravityCoilBlade Manual? 0 Play Time 00:15:00 Cumulative 2.7 hours Start 2023.10.29 @ 12:53:36 End 2023.10.29 @ 13:05:09 Sessions 1 Manual Loads 0 Difficulty Rogue Special Mode None Game No. 9 Rogue 9 Adventurer 0 Explorer 0 Win Type - Total 0 Types 0/0/0/0/0/0/0/0/0 Lore% 5 Gallery% 7 Achievement% 6 Wizard Run 0 Options --------- ASCII 0 Keyboard 1 Movement Arrows Keybinds 0 Fullscreen 1 Font 18/Terminus Map View 76x50 Tactical HUD 1 Map Filters NONE Filters NONE Steam 1 RUN: b7e4eee3-7dbd-45da-9039-dbd6efb665d7